[Event "Titled Tuesday Blitz December 20 Early 2022"]
[White "AvitalBor"]
[Black "GP9isback23"]
[WhiteElo "2816"]
[BlackElo "2577"]
[Result "1-0"]
[Round "04"]
[TimeControl "180+2"]
[Date "2022.12.20"]
[WhiteClock "0:00:14"]
[BlackClock "0:00:05"]

1. g3 {[%clk 0:03:00]}  d5 {[%clk 0:02:59]} 2. Nf3 {[%clk 0:02:59]}  Nf6 {[%clk 0:03:00]} 3. Bg2 {[%clk 0:02:59]}  c6 {[%clk 0:02:56]} 4. O-O {[%clk 0:02:59]}  Bf5 {[%clk 0:02:55]} 5. d3 {[%clk 0:02:59]}  e6 {[%clk 0:02:55]} 6. Nbd2 {[%clk 0:02:58]}  Be7 {[%clk 0:02:55]} 7. Nh4 {[%clk 0:02:58]}  Bg6 {[%clk 0:02:55]} 8. Nxg6 {[%clk 0:02:57]}  hxg6 {[%clk 0:02:55]} 9. e4 {[%clk 0:02:52]}  O-O {[%clk 0:02:55]} 10. h3 {[%clk 0:02:48]}  dxe4 {[%clk 0:02:44]} 11. Nxe4 {[%clk 0:02:47]}  Nxe4 {[%clk 0:02:44]} 12. Bxe4 {[%clk 0:02:46]}  Nd7 {[%clk 0:02:44]} 13. h4 {[%clk 0:02:44]}  Nf6 {[%clk 0:02:42]} 14. Bg2 {[%clk 0:02:42]}  Qb6 {[%clk 0:02:42]} 15. c3 {[%clk 0:02:34]}  Rfd8 {[%clk 0:02:41]} 16. Qe2 {[%clk 0:02:21]}  Rd7 {[%clk 0:02:37]} 17. Be3 {[%clk 0:02:19]}  Qa6 {[%clk 0:02:37]} 18. Rfd1 {[%clk 0:02:17]}  Rad8 {[%clk 0:02:37]} 19. c4 {[%clk 0:02:09]}  c5 {[%clk 0:02:28]} 20. a3 {[%clk 0:02:05]}  b6 {[%clk 0:02:18]} 21. b4 {[%clk 0:02:04]}  Qc8 {[%clk 0:02:18]} 22. b5 {[%clk 0:01:59]}  Bd6 {[%clk 0:01:59]} 23. a4 {[%clk 0:01:57]}  Be5 {[%clk 0:01:56]} 24. Ra3 {[%clk 0:01:53]}  Bd4 {[%clk 0:01:56]} 25. Bg5 {[%clk 0:01:53]}  Qc7 {[%clk 0:01:46]} 26. Kf1 {[%clk 0:01:43]}  Re7 {[%clk 0:01:12]} 27. Bc6 {[%clk 0:01:34]}  e5 {[%clk 0:01:05]} 28. Qf3 {[%clk 0:01:29]}  Re6 {[%clk 0:00:58]} 29. a5 {[%clk 0:01:28]}  Rf8 {[%clk 0:00:52]} 30. axb6 {[%clk 0:01:27]}  axb6 {[%clk 0:00:53]} 31. Rd2 {[%clk 0:01:21]}  Nh7 {[%clk 0:00:42]} 32. Rda2 {[%clk 0:01:16]}  Nxg5 {[%clk 0:00:42]} 33. hxg5 {[%clk 0:01:17]}  e4 {[%clk 0:00:41]} 34. Bxe4 {[%clk 0:01:16]}  Qe5 {[%clk 0:00:41]} 35. Bd5 {[%clk 0:01:11]}  Re7 {[%clk 0:00:40]} 36. Qg4 {[%clk 0:00:57]}  Qe1+ {[%clk 0:00:22]} 37. Kg2 {[%clk 0:00:56]}  Re5 {[%clk 0:00:18]} 38. Be4 {[%clk 0:00:27]}  Qc1 {[%clk 0:00:11]} 39. Ra8 {[%clk 0:00:26]}  Ree8 {[%clk 0:00:07]} 40. Rxe8 {[%clk 0:00:20]}  Rxe8 {[%clk 0:00:08]} 41. Ra7 {[%clk 0:00:14]}  Qd2 {[%clk 0:00:05]} 42. Qf3 {[%clk 0:00:14]}  Rf8 {[%clk 0:00:05]} 43. Bd5 {[%clk 0:00:15]}  Qxg5 {[%clk 0:00:05]} 44. Rxf7 {[%clk 0:00:14]} 1-0


[Site "https://www.chess.com"]

[Event "Titled Tuesday Blitz December 20 Early 2022"]
[White "Aygehovit1992"]
[Black "InitiatingASC"]
[WhiteElo "2682"]
[BlackElo "2412"]
[Result "1-0"]
[Round "04"]
[TimeControl "180+2"]
[Date "2022.12.20"]
[WhiteClock "0:01:51"]
[BlackClock "0:00:09"]

1. e4 {[%clk 0:03:00]}  e5 {[%clk 0:02:57]} 2. Nf3 {[%clk 0:03:00]}  Nf6 {[%clk 0:02:57]} 3. d4 {[%clk 0:02:58]}  Nxe4 {[%clk 0:02:57]} 4. Bd3 {[%clk 0:02:58]}  d5 {[%clk 0:02:57]} 5. dxe5 {[%clk 0:02:58]}  Nc5 {[%clk 0:02:54]} 6. O-O {[%clk 0:02:57]}  Nxd3 {[%clk 0:02:54]} 7. Qxd3 {[%clk 0:02:57]}  Bg4 {[%clk 0:02:52]} 8. Nc3 {[%clk 0:02:44]}  c6 {[%clk 0:02:48]} 9. Ne2 {[%clk 0:02:44]}  Nd7 {[%clk 0:02:44]} 10. Ng3 {[%clk 0:02:44]}  Bc5 {[%clk 0:02:28]} 11. Bg5 {[%clk 0:02:40]}  Qb6 {[%clk 0:02:15]} 12. Nf5 {[%clk 0:02:37]}  O-O {[%clk 0:02:00]} 13. Bf6 {[%clk 0:02:21]}  gxf6 {[%clk 0:01:44]} 14. Nh6+ {[%clk 0:02:11]}  Kg7 {[%clk 0:01:38]} 15. Nxg4 {[%clk 0:02:10]}  fxe5 {[%clk 0:01:26]} 16. Nfxe5 {[%clk 0:02:11]}  Qc7 {[%clk 0:00:51]} 17. Qg3 {[%clk 0:01:59]}  Rac8 {[%clk 0:00:09]} 18. Nxd7 {[%clk 0:01:51]} 1-0


[Site "https://www.chess.com"]

[Event "Titled Tuesday Blitz December 20 Early 2022"]
[White "Baki, Peter"]
[Black "Klose, Eli"]
[WhiteFideId "718459"]
[BlackFideId "16242955"]
[WhiteElo "2100"]
[BlackElo "1519"]
[Result "1-0"]
[Round "04"]
[TimeControl "180+2"]
[Date "2022.12.20"]
[WhiteClock "0:00:52"]
[BlackClock "0:00:19"]

1. e4 {[%clk 0:03:00]}  e6 {[%clk 0:02:57]} 2. Nf3 {[%clk 0:03:00]}  d5 {[%clk 0:02:53]} 3. exd5 {[%clk 0:03:01]}  exd5 {[%clk 0:02:52]} 4. d4 {[%clk 0:03:02]}  Nf6 {[%clk 0:02:52]} 5. Bd3 {[%clk 0:03:02]}  c5 {[%clk 0:02:49]} 6. O-O {[%clk 0:03:00]}  c4 {[%clk 0:02:44]} 7. Re1+ {[%clk 0:03:00]}  Be7 {[%clk 0:02:44]} 8. Bf1 {[%clk 0:03:00]}  O-O {[%clk 0:02:43]} 9. b3 {[%clk 0:03:00]}  cxb3 {[%clk 0:02:41]} 10. axb3 {[%clk 0:03:01]}  Nc6 {[%clk 0:02:42]} 11. Bb2 {[%clk 0:03:01]}  Bg4 {[%clk 0:02:41]} 12. Nbd2 {[%clk 0:03:01]}  Re8 {[%clk 0:02:40]} 13. h3 {[%clk 0:03:01]}  Bh5 {[%clk 0:02:39]} 14. c3 {[%clk 0:02:53]}  Bd6 {[%clk 0:02:34]} 15. Bd3 {[%clk 0:02:49]}  a6 {[%clk 0:02:32]} 16. Qc2 {[%clk 0:02:48]}  Rc8 {[%clk 0:02:31]} 17. Rxe8+ {[%clk 0:02:39]}  Qxe8 {[%clk 0:02:29]} 18. Re1 {[%clk 0:02:37]}  Qd8 {[%clk 0:02:29]} 19. Qb1 {[%clk 0:02:29]}  Bg6 {[%clk 0:02:15]} 20. Ne5 {[%clk 0:02:23]}  Bxd3 {[%clk 0:01:58]} 21. Qxd3 {[%clk 0:02:23]}  Qc7 {[%clk 0:01:54]} 22. Nef3 {[%clk 0:02:00]}  Re8 {[%clk 0:01:47]} 23. Rxe8+ {[%clk 0:01:59]}  Nxe8 {[%clk 0:01:47]} 24. Nf1 {[%clk 0:01:59]}  Nf6 {[%clk 0:01:45]} 25. Ne3 {[%clk 0:01:59]}  Bf4 {[%clk 0:01:41]} 26. c4 {[%clk 0:01:55]}  Bxe3 {[%clk 0:01:40]} 27. Qxe3 {[%clk 0:01:55]}  h6 {[%clk 0:01:27]} 28. Ba3 {[%clk 0:01:34]}  Na5 {[%clk 0:01:13]} 29. cxd5 {[%clk 0:01:28]}  Qb6 {[%clk 0:00:56]} 30. Nd2 {[%clk 0:01:19]}  Nxd5 {[%clk 0:00:48]} 31. Qe8+ {[%clk 0:01:19]}  Kh7 {[%clk 0:00:47]} 32. Qe4+ {[%clk 0:01:18]}  Qg6 {[%clk 0:00:36]} 33. Qxd5 {[%clk 0:01:15]}  Nc6 {[%clk 0:00:37]} 34. Bb2 {[%clk 0:01:11]}  Kg8 {[%clk 0:00:34]} 35. Qe4 {[%clk 0:01:10]}  Qg5 {[%clk 0:00:33]} 36. Qe3 {[%clk 0:01:09]}  Qd5 {[%clk 0:00:31]} 37. Nc4 {[%clk 0:01:07]}  b5 {[%clk 0:00:30]} 38. Nb6 {[%clk 0:01:05]}  Qd6 {[%clk 0:00:25]} 39. d5 {[%clk 0:01:05]}  Nb4 {[%clk 0:00:25]} 40. Qe8+ {[%clk 0:00:58]}  Kh7 {[%clk 0:00:24]} 41. Qe4+ {[%clk 0:00:55]}  Kg8 {[%clk 0:00:22]} 42. Nc8 {[%clk 0:00:52]}  Qxd5 {[%clk 0:00:20]} 43. Ne7+ {[%clk 0:00:51]}  Kf8 {[%clk 0:00:19]} 44. Nxd5 {[%clk 0:00:52]} 1-0


[Site "https://www.chess.com"]

[Event "Titled Tuesday Blitz December 20 Early 2022"]
[White "Balasch Peries, Eduard"]
[Black "Jabborov, Sanjar"]
[WhiteFideId "32067372"]
[BlackFideId "14219263"]
[WhiteElo "1671"]
[BlackElo "1449"]
[Result "1-0"]
[Round "04"]
[TimeControl "180+2"]
[Date "2022.12.20"]
[WhiteClock "0:00:05"]
[BlackClock "0:00:06"]

1. d4 {[%clk 0:03:00]}  Nf6 {[%clk 0:02:59]} 2. c4 {[%clk 0:03:01]}  g6 {[%clk 0:02:59]} 3. g3 {[%clk 0:03:01]}  d6 {[%clk 0:02:59]} 4. Bg2 {[%clk 0:03:01]}  Bg7 {[%clk 0:03:00]} 5. Nc3 {[%clk 0:03:02]}  O-O {[%clk 0:03:00]} 6. Nf3 {[%clk 0:03:02]}  Nc6 {[%clk 0:02:59]} 7. O-O {[%clk 0:03:03]}  a6 {[%clk 0:02:59]} 8. Bf4 {[%clk 0:03:03]}  Rb8 {[%clk 0:02:57]} 9. Rc1 {[%clk 0:03:02]}  Bg4 {[%clk 0:02:55]} 10. h3 {[%clk 0:02:59]}  Bd7 {[%clk 0:02:54]} 11. Nd5 {[%clk 0:02:56]}  e6 {[%clk 0:02:53]} 12. Nxf6+ {[%clk 0:02:46]}  Qxf6 {[%clk 0:02:53]} 13. Bg5 {[%clk 0:02:39]}  Qf5 {[%clk 0:02:53]} 14. e4 {[%clk 0:02:20]}  Qa5 {[%clk 0:02:35]} 15. Be3 {[%clk 0:01:30]}  Qxa2 {[%clk 0:02:28]} 16. b3 {[%clk 0:01:30]}  b5 {[%clk 0:02:10]} 17. Ra1 {[%clk 0:01:18]}  Qb2 {[%clk 0:02:10]} 18. Rb1 {[%clk 0:01:08]}  Qc3 {[%clk 0:02:08]} 19. Rc1 {[%clk 0:01:05]}  Qa5 {[%clk 0:02:03]} 20. Ra1 {[%clk 0:00:58]}  Qc3 {[%clk 0:02:03]} 21. Rc1 {[%clk 0:00:58]}  Qb4 {[%clk 0:01:53]} 22. Bd2 {[%clk 0:00:53]}  Qa3 {[%clk 0:01:53]} 23. Ra1 {[%clk 0:00:52]}  Qb2 {[%clk 0:01:52]} 24. Rb1 {[%clk 0:00:43]}  Qxb1 {[%clk 0:01:43]} 25. Qxb1 {[%clk 0:00:41]}  bxc4 {[%clk 0:01:44]} 26. Rc1 {[%clk 0:00:28]}  Rxb3 {[%clk 0:01:42]} 27. Qa2 {[%clk 0:00:27]}  d5 {[%clk 0:01:40]} 28. exd5 {[%clk 0:00:24]}  exd5 {[%clk 0:01:40]} 29. Ne5 {[%clk 0:00:25]}  Nxe5 {[%clk 0:01:27]} 30. dxe5 {[%clk 0:00:24]}  c6 {[%clk 0:01:27]} 31. Bf4 {[%clk 0:00:19]}  g5 {[%clk 0:01:25]} 32. Bxg5 {[%clk 0:00:19]}  Bxe5 {[%clk 0:01:25]} 33. Qe2 {[%clk 0:00:19]}  Bg7 {[%clk 0:01:24]} 34. Qe7 {[%clk 0:00:16]}  Bf5 {[%clk 0:01:23]} 35. Bf6 {[%clk 0:00:16]}  Bxf6 {[%clk 0:01:03]} 36. Qxf6 {[%clk 0:00:16]}  Bg6 {[%clk 0:00:59]} 37. h4 {[%clk 0:00:16]}  h5 {[%clk 0:00:47]} 38. g4 {[%clk 0:00:11]}  hxg4 {[%clk 0:00:46]} 39. Qg5 {[%clk 0:00:11]}  Kh7 {[%clk 0:00:44]} 40. h5 {[%clk 0:00:10]}  Bd3 {[%clk 0:00:44]} 41. h6 {[%clk 0:00:08]}  Rg8 {[%clk 0:00:43]} 42. Qf6 {[%clk 0:00:07]}  Rg6 {[%clk 0:00:43]} 43. Qxf7+ {[%clk 0:00:06]}  Kxh6 {[%clk 0:00:44]} 44. Qf4+ {[%clk 0:00:05]}  Kh5 {[%clk 0:00:42]} 45. Re1 {[%clk 0:00:06]}  Rg5 {[%clk 0:00:38]} 46. Re8 {[%clk 0:00:06]}  Rb1+ {[%clk 0:00:36]} 47. Kh2 {[%clk 0:00:06]}  Rb7 {[%clk 0:00:36]} 48. Rh8+ {[%clk 0:00:06]}  Rh7 {[%clk 0:00:36]} 49. Qf7+ {[%clk 0:00:04]}  Kh6 {[%clk 0:00:34]} 50. Qf8+ {[%clk 0:00:03]}  Rg7 {[%clk 0:00:33]} 51. Rxh7+ {[%clk 0:00:04]}  Kxh7 {[%clk 0:00:32]} 52. Qd6 {[%clk 0:00:03]}  Rg6 {[%clk 0:00:32]} 53. Qd7+ {[%clk 0:00:02]}  Kh6 {[%clk 0:00:32]} 54. Kg3 {[%clk 0:00:03]}  c3 {[%clk 0:00:31]} 55. Qd8 {[%clk 0:00:03]}  c2 {[%clk 0:00:27]} 56. Qh8+ {[%clk 0:00:04]}  Kg5 {[%clk 0:00:26]} 57. Qe5+ {[%clk 0:00:05]}  Bf5 {[%clk 0:00:24]} 58. Qe3+ {[%clk 0:00:05]}  Kf6 {[%clk 0:00:23]} 59. Qc3+ {[%clk 0:00:05]}  Ke7 {[%clk 0:00:22]} 60. Bf1 {[%clk 0:00:06]}  Re6 {[%clk 0:00:20]} 61. Bxa6 {[%clk 0:00:05]}  Re4 {[%clk 0:00:17]} 62. Bd3 {[%clk 0:00:04]}  d4 {[%clk 0:00:08]} 63. Qc5+ {[%clk 0:00:04]}  Kf6 {[%clk 0:00:07]} 64. Bxe4 {[%clk 0:00:04]}  Bxe4 {[%clk 0:00:08]} 65. Kf4 {[%clk 0:00:05]}  d3 {[%clk 0:00:07]} 66. Kxe4 {[%clk 0:00:04]}  d2 {[%clk 0:00:07]} 67. Qd4+ {[%clk 0:00:04]}  Kg6 {[%clk 0:00:06]} 68. Qxd2 {[%clk 0:00:05]} 1-0


[Site "https://www.chess.com"]

[Event "Titled Tuesday Blitz December 20 Early 2022"]
[White "Bilandani, Vansh"]
[Black "vovachesss"]
[WhiteFideId "8511292"]
[WhiteElo "2488"]
[BlackElo "2756"]
[Result "0-1"]
[Round "04"]
[TimeControl "180+2"]
[Date "2022.12.20"]
[WhiteClock "0:00:02"]
[BlackClock "0:00:11"]

1. d4 {[%clk 0:02:58]}  d6 {[%clk 0:02:51]} 2. Nf3 {[%clk 0:02:57]}  Nf6 {[%clk 0:02:51]} 3. g3 {[%clk 0:02:48]}  g6 {[%clk 0:02:51]} 4. Bg2 {[%clk 0:02:48]}  Bg7 {[%clk 0:02:52]} 5. O-O {[%clk 0:02:48]}  O-O {[%clk 0:02:53]} 6. c4 {[%clk 0:02:49]}  Bf5 {[%clk 0:02:53]} 7. Nc3 {[%clk 0:02:44]}  Ne4 {[%clk 0:02:54]} 8. Qb3 {[%clk 0:02:27]}  Nxc3 {[%clk 0:02:53]} 9. Qxc3 {[%clk 0:02:06]}  Be4 {[%clk 0:02:54]} 10. Qe3 {[%clk 0:01:59]}  d5 {[%clk 0:02:42]} 11. c5 {[%clk 0:01:33]}  Nc6 {[%clk 0:02:39]} 12. Rd1 {[%clk 0:01:21]}  b6 {[%clk 0:02:08]} 13. Ne5 {[%clk 0:00:55]}  Nxe5 {[%clk 0:02:06]} 14. dxe5 {[%clk 0:00:47]}  Bxg2 {[%clk 0:02:02]} 15. Kxg2 {[%clk 0:00:48]}  Qd7 {[%clk 0:01:55]} 16. f4 {[%clk 0:00:43]}  Qb5 {[%clk 0:01:16]} 17. b3 {[%clk 0:00:22]}  e6 {[%clk 0:00:44]} 18. cxb6 {[%clk 0:00:19]}  cxb6 {[%clk 0:00:43]} 19. Ba3 {[%clk 0:00:18]}  Rfc8 {[%clk 0:00:41]} 20. Rac1 {[%clk 0:00:17]}  Qa6 {[%clk 0:00:34]} 21. b4 {[%clk 0:00:09]}  Bf8 {[%clk 0:00:24]} 22. Qd3 {[%clk 0:00:09]}  Qa4 {[%clk 0:00:21]} 23. e3 {[%clk 0:00:06]}  a5 {[%clk 0:00:20]} 24. Rb1 {[%clk 0:00:05]}  axb4 {[%clk 0:00:18]} 25. Bb2 {[%clk 0:00:02]}  Qxa2 {[%clk 0:00:11]} 26. Rd2 {[%clk 0:00:02]}  Qc4 {[%clk 0:00:11]} 27. Qxc4 {[%clk 0:00:01]}  dxc4 {[%clk 0:00:11]} 28. h4 {[%clk 0:00:02]}  c3 {[%clk 0:00:11]} 0-1


[Site "https://www.chess.com"]

[Event "Titled Tuesday Blitz December 20 Early 2022"]
[White "BlueWizzard"]
[Black "exoticprincess"]
[WhiteElo "2862"]
[BlackElo "3057"]
[Result "0-1"]
[Round "04"]
[TimeControl "180+2"]
[Date "2022.12.20"]
[WhiteClock "0:00:02"]
[BlackClock "0:00:12"]

1. Nf3 {[%clk 0:03:00]}  d5 {[%clk 0:02:59]} 2. d4 {[%clk 0:03:00]}  Nf6 {[%clk 0:02:59]} 3. c4 {[%clk 0:02:59]}  dxc4 {[%clk 0:03:00]} 4. Na3 {[%clk 0:02:48]}  e6 {[%clk 0:02:44]} 5. Nxc4 {[%clk 0:02:48]}  c5 {[%clk 0:02:44]} 6. e3 {[%clk 0:02:39]}  Nc6 {[%clk 0:02:44]} 7. Nce5 {[%clk 0:02:33]}  Nxe5 {[%clk 0:02:29]} 8. Nxe5 {[%clk 0:02:33]}  Bd6 {[%clk 0:02:28]} 9. Bb5+ {[%clk 0:02:28]}  Ke7 {[%clk 0:02:27]} 10. O-O {[%clk 0:02:28]}  Qc7 {[%clk 0:02:18]} 11. Bd2 {[%clk 0:01:49]}  Rd8 {[%clk 0:02:13]} 12. Nf3 {[%clk 0:01:37]}  b6 {[%clk 0:02:05]} 13. Bd3 {[%clk 0:01:28]}  Bb7 {[%clk 0:02:03]} 14. Rc1 {[%clk 0:01:25]}  Rac8 {[%clk 0:01:35]} 15. h3 {[%clk 0:01:13]}  Qb8 {[%clk 0:01:35]} 16. Qe2 {[%clk 0:01:09]}  Qa8 {[%clk 0:01:33]} 17. dxc5 {[%clk 0:01:02]}  Bxc5 {[%clk 0:01:33]} 18. Ba6 {[%clk 0:00:50]}  Ne4 {[%clk 0:01:24]} 19. Bc3 {[%clk 0:00:42]}  f6 {[%clk 0:01:18]} 20. Nd4 {[%clk 0:00:36]}  Bxa6 {[%clk 0:01:11]} 21. Qxa6 {[%clk 0:00:36]}  g6 {[%clk 0:01:04]} 22. Nb5 {[%clk 0:00:27]}  Rd7 {[%clk 0:01:03]} 23. Rfd1 {[%clk 0:00:25]}  Rcd8 {[%clk 0:01:03]} 24. Re1 {[%clk 0:00:24]}  Nxc3 {[%clk 0:00:53]} 25. bxc3 {[%clk 0:00:24]}  e5 {[%clk 0:00:51]} 26. Qa4 {[%clk 0:00:24]}  Qc6 {[%clk 0:00:50]} 27. Rb1 {[%clk 0:00:24]}  a6 {[%clk 0:00:47]} 28. Qh4 {[%clk 0:00:24]}  axb5 {[%clk 0:00:46]} 29. Qxh7+ {[%clk 0:00:25]}  Kd6 {[%clk 0:00:43]} 30. Qxg6 {[%clk 0:00:25]}  Kc7 {[%clk 0:00:43]} 31. Rbc1 {[%clk 0:00:23]}  Qe6 {[%clk 0:00:43]} 32. c4 {[%clk 0:00:23]}  Rg8 {[%clk 0:00:43]} 33. Qe4 {[%clk 0:00:22]}  f5 {[%clk 0:00:30]} 34. Qf3 {[%clk 0:00:21]}  bxc4 {[%clk 0:00:30]} 35. Rc2 {[%clk 0:00:19]}  Rdg7 {[%clk 0:00:29]} 36. g3 {[%clk 0:00:19]}  e4 {[%clk 0:00:30]} 37. Qe2 {[%clk 0:00:19]}  b5 {[%clk 0:00:29]} 38. Rb1 {[%clk 0:00:17]}  f4 {[%clk 0:00:29]} 39. Rxb5 {[%clk 0:00:16]}  fxg3 {[%clk 0:00:29]} 40. Rxc5+ {[%clk 0:00:15]}  Kd6 {[%clk 0:00:28]} 41. Qd2+ {[%clk 0:00:10]}  Kxc5 {[%clk 0:00:23]} 42. Qd4+ {[%clk 0:00:10]}  Kb5 {[%clk 0:00:23]} 43. Rb2+ {[%clk 0:00:10]}  Ka6 {[%clk 0:00:24]} 44. f4 {[%clk 0:00:04]}  Rb7 {[%clk 0:00:13]} 45. f5 {[%clk 0:00:02]}  Qc6 {[%clk 0:00:12]} 0-1


[Site "https://www.chess.com"]

[Event "Titled Tuesday Blitz December 20 Early 2022"]
[White "Chernov_Mikhail"]
[Black "Jannat Makan, Ali Reza"]
[BlackFideId "22583556"]
[WhiteElo "2398"]
[BlackElo "1621"]
[Result "1-0"]
[Round "04"]
[TimeControl "180+2"]
[Date "2022.12.20"]
[WhiteClock "0:01:51"]
[BlackClock "0:00:01"]

1. e4 {[%clk 0:03:00]}  c6 {[%clk 0:03:00]} 2. d4 {[%clk 0:03:00]}  d5 {[%clk 0:03:01]} 3. e5 {[%clk 0:02:59]}  Bf5 {[%clk 0:03:00]} 4. h4 {[%clk 0:02:59]}  h5 {[%clk 0:02:56]} 5. c4 {[%clk 0:02:59]}  e6 {[%clk 0:02:56]} 6. Nc3 {[%clk 0:03:00]}  Nd7 {[%clk 0:02:47]} 7. Bg5 {[%clk 0:03:00]}  Qb6 {[%clk 0:02:29]} 8. Qd2 {[%clk 0:02:59]}  dxc4 {[%clk 0:02:11]} 9. Bxc4 {[%clk 0:02:59]}  Bb4 {[%clk 0:02:10]} 10. Nge2 {[%clk 0:02:59]}  f6 {[%clk 0:01:54]} 11. exf6 {[%clk 0:02:58]}  Ngxf6 {[%clk 0:01:49]} 12. Ng3 {[%clk 0:02:49]}  Ne4 {[%clk 0:01:21]} 13. Ngxe4 {[%clk 0:02:48]}  Bxe4 {[%clk 0:01:13]} 14. O-O {[%clk 0:02:47]}  c5 {[%clk 0:00:43]} 15. dxc5 {[%clk 0:02:35]}  Nxc5 {[%clk 0:00:43]} 16. Rfe1 {[%clk 0:02:31]}  O-O {[%clk 0:00:37]} 17. a3 {[%clk 0:02:27]}  Bxc3 {[%clk 0:00:35]} 18. Qxc3 {[%clk 0:02:28]}  Nd3 {[%clk 0:00:20]} 19. Rxe4 {[%clk 0:02:23]}  Qxf2+ {[%clk 0:00:19]} 20. Kh2 {[%clk 0:02:18]}  Nf4 {[%clk 0:00:07]} 21. Rxf4 {[%clk 0:02:10]}  Rxf4 {[%clk 0:00:06]} 22. Bxe6+ {[%clk 0:02:10]}  Kh8 {[%clk 0:00:06]} 23. Bxf4 {[%clk 0:02:10]}  Qxf4+ {[%clk 0:00:07]} 24. Qg3 {[%clk 0:02:08]}  Qf6 {[%clk 0:00:03]} 25. Bd5 {[%clk 0:01:57]}  Re8 {[%clk 0:00:02]} 26. Bf3 {[%clk 0:01:53]}  Rd8 {[%clk 0:00:01]} 27. Rc1 {[%clk 0:01:51]} 1-0


[Site "https://www.chess.com"]

[Event "Titled Tuesday Blitz December 20 Early 2022"]
[White "Chesca, Alexandru"]
[Black "Beca, Rodrigo Martins"]
[WhiteFideId "1214438"]
[BlackFideId "1954490"]
[WhiteElo "1917"]
[BlackElo "2976"]
[Result "0-1"]
[Round "04"]
[TimeControl "180+2"]
[Date "2022.12.20"]
[WhiteClock "0:00:48"]
[BlackClock "0:00:58"]

1. Nf3 {[%clk 0:02:55]}  c5 {[%clk 0:02:58]} 2. c4 {[%clk 0:02:54]}  Nc6 {[%clk 0:02:58]} 3. Nc3 {[%clk 0:02:55]}  g6 {[%clk 0:02:58]} 4. e3 {[%clk 0:02:55]}  Bg7 {[%clk 0:02:58]} 5. d4 {[%clk 0:02:55]}  d6 {[%clk 0:02:58]} 6. d5 {[%clk 0:02:54]}  Na5 {[%clk 0:02:56]} 7. Qc2 {[%clk 0:02:47]}  Nf6 {[%clk 0:02:54]} 8. e4 {[%clk 0:02:46]}  O-O {[%clk 0:02:53]} 9. Be2 {[%clk 0:02:46]}  e5 {[%clk 0:02:52]} 10. O-O {[%clk 0:02:45]}  Nh5 {[%clk 0:02:49]} 11. b3 {[%clk 0:02:40]}  Nf4 {[%clk 0:02:47]} 12. Re1 {[%clk 0:02:32]}  h6 {[%clk 0:02:42]} 13. Bf1 {[%clk 0:02:31]}  g5 {[%clk 0:02:40]} 14. Ne2 {[%clk 0:02:20]}  f5 {[%clk 0:02:38]} 15. Ng3 {[%clk 0:02:15]}  fxe4 {[%clk 0:02:37]} 16. Qxe4 {[%clk 0:02:14]}  b5 {[%clk 0:02:26]} 17. Bd2 {[%clk 0:02:11]}  b4 {[%clk 0:02:23]} 18. Bd3 {[%clk 0:01:57]}  Nxd3 {[%clk 0:02:21]} 19. Qxd3 {[%clk 0:01:58]}  Bg4 {[%clk 0:02:16]} 20. Ne4 {[%clk 0:01:53]}  Nb7 {[%clk 0:02:10]} 21. Re3 {[%clk 0:01:50]}  a5 {[%clk 0:02:09]} 22. h3 {[%clk 0:01:44]}  Bf5 {[%clk 0:02:07]} 23. Rae1 {[%clk 0:01:42]}  a4 {[%clk 0:02:05]} 24. Bc1 {[%clk 0:01:29]}  axb3 {[%clk 0:02:03]} 25. axb3 {[%clk 0:01:30]}  Bh7 {[%clk 0:01:59]} 26. Qd2 {[%clk 0:01:23]}  Qc7 {[%clk 0:01:51]} 27. Nh2 {[%clk 0:01:22]}  Ra1 {[%clk 0:01:42]} 28. Rg3 {[%clk 0:01:18]}  Qf7 {[%clk 0:01:26]} 29. h4 {[%clk 0:01:10]}  Bxe4 {[%clk 0:01:22]} 30. Rxe4 {[%clk 0:01:08]}  Rxc1+ {[%clk 0:01:22]} 31. Nf1 {[%clk 0:00:59]}  Qf5 {[%clk 0:01:15]} 32. Reg4 {[%clk 0:00:56]}  Qb1 {[%clk 0:01:12]} 33. Qe2 {[%clk 0:00:55]}  Re1 {[%clk 0:01:06]} 34. Qd3 {[%clk 0:00:49]}  Qxd3 {[%clk 0:01:05]} 35. Rxd3 {[%clk 0:00:50]}  Rf4 {[%clk 0:01:02]} 36. Rgg3 {[%clk 0:00:48]}  e4 {[%clk 0:00:58]} 0-1


[Site "https://www.chess.com"]

[Event "Titled Tuesday Blitz December 20 Early 2022"]
[White "ChessTankMan"]
[Black "Korchmar_Vasiliy"]
[WhiteElo "2514"]
[BlackElo "2703"]
[Result "0-1"]
[Round "04"]
[TimeControl "180+2"]
[Date "2022.12.20"]
[WhiteClock "0:00:03"]
[BlackClock "0:00:24"]

1. e4 {[%clk 0:03:00]}  c5 {[%clk 0:02:57]} 2. Nf3 {[%clk 0:03:00]}  d6 {[%clk 0:02:56]} 3. d4 {[%clk 0:03:00]}  cxd4 {[%clk 0:02:57]} 4. Nxd4 {[%clk 0:03:01]}  Nf6 {[%clk 0:02:57]} 5. Nc3 {[%clk 0:03:01]}  Nc6 {[%clk 0:02:58]} 6. Bg5 {[%clk 0:03:00]}  Bd7 {[%clk 0:02:57]} 7. Qd2 {[%clk 0:03:00]}  a6 {[%clk 0:02:57]} 8. O-O-O {[%clk 0:02:59]}  e6 {[%clk 0:02:57]} 9. f4 {[%clk 0:02:59]}  Be7 {[%clk 0:02:57]} 10. Nf3 {[%clk 0:02:58]}  b5 {[%clk 0:02:57]} 11. e5 {[%clk 0:02:57]}  b4 {[%clk 0:02:55]} 12. Ne2 {[%clk 0:02:31]}  dxe5 {[%clk 0:02:40]} 13. fxe5 {[%clk 0:02:29]}  Nd5 {[%clk 0:02:36]} 14. Bxe7 {[%clk 0:02:27]}  Ncxe7 {[%clk 0:02:32]} 15. Nf4 {[%clk 0:02:22]}  Bb5 {[%clk 0:02:22]} 16. Nxd5 {[%clk 0:02:17]}  Nxd5 {[%clk 0:02:21]} 17. Nd4 {[%clk 0:02:15]}  O-O {[%clk 0:02:16]} 18. Kb1 {[%clk 0:02:10]}  Qc7 {[%clk 0:01:59]} 19. Qe1 {[%clk 0:01:58]}  Bxf1 {[%clk 0:01:50]} 20. Rxf1 {[%clk 0:01:56]}  Rab8 {[%clk 0:01:51]} 21. Ka1 {[%clk 0:01:53]}  a5 {[%clk 0:01:51]} 22. Rf3 {[%clk 0:01:31]}  a4 {[%clk 0:01:50]} 23. Rc1 {[%clk 0:01:02]}  a3 {[%clk 0:01:49]} 24. bxa3 {[%clk 0:00:54]}  Qc4 {[%clk 0:01:47]} 25. Nb3 {[%clk 0:00:38]}  bxa3 {[%clk 0:01:45]} 26. c3 {[%clk 0:00:34]}  Rb6 {[%clk 0:01:39]} 27. Rh3 {[%clk 0:00:24]}  Rfb8 {[%clk 0:01:35]} 28. Qh4 {[%clk 0:00:23]}  Qe2 {[%clk 0:01:07]} 29. Qxh7+ {[%clk 0:00:18]}  Kf8 {[%clk 0:01:08]} 30. Qh8+ {[%clk 0:00:18]}  Ke7 {[%clk 0:01:07]} 31. Qh4+ {[%clk 0:00:18]}  f6 {[%clk 0:00:56]} 32. exf6+ {[%clk 0:00:19]}  Nxf6 {[%clk 0:00:57]} 33. Rb1 {[%clk 0:00:17]}  Rxb3 {[%clk 0:00:39]} 34. axb3 {[%clk 0:00:16]}  a2 {[%clk 0:00:40]} 35. Rc1 {[%clk 0:00:16]}  Rxb3 {[%clk 0:00:38]} 36. Qb4+ {[%clk 0:00:14]}  Rxb4 {[%clk 0:00:38]} 37. cxb4 {[%clk 0:00:14]}  Qxg2 {[%clk 0:00:32]} 38. Ra3 {[%clk 0:00:13]}  Qxh2 {[%clk 0:00:27]} 39. b5 {[%clk 0:00:12]}  Qe5+ {[%clk 0:00:27]} 40. Kxa2 {[%clk 0:00:12]}  Qxb5 {[%clk 0:00:25]} 41. Ra7+ {[%clk 0:00:11]}  Nd7 {[%clk 0:00:25]} 42. Rcc7 {[%clk 0:00:11]}  Qd5+ {[%clk 0:00:24]} 43. Kb2 {[%clk 0:00:10]}  g5 {[%clk 0:00:25]} 44. Rc3 {[%clk 0:00:07]}  g4 {[%clk 0:00:25]} 45. Kc2 {[%clk 0:00:03]}  g3 {[%clk 0:00:24]} 0-1


[Site "https://www.chess.com"]